[Event "Live Chess"]
[Site "Chess.com"]
[Date "2011.01.28"]
[Round "-"]
[White "TimArnett"]
[Black "hipposcottimus"]
[Result "0-1"]
[CurrentPosition "5k2/p1q3p1/p6p/7P/4p2P/4K3/8/8 w - -"]
[Timezone "UTC"]
[ECO "C26"]
[ECOUrl "https://www.chess.com/openings/Vienna-Game-Falkbeer-Variation-3.d3"]
[UTCDate "2011.01.28"]
[UTCTime "23:00:46"]
[WhiteElo "1556"]
[BlackElo "1541"]
[TimeControl "60"]
[Termination "hipposcottimus won on time"]
[StartTime "23:00:46"]
[EndDate "2011.01.28"]
[EndTime "23:03:05"]
[Link "https://www.chess.com/game/live/92419549"]

1. e4 {[%clk 0:01:00]} 1... e5 {[%clk 0:01:00]} 2. Nc3 {[%clk 0:00:59.7]} 2... Nf6 {[%clk 0:00:58.2]} 3. d3 {[%clk 0:00:59.1]} 3... Nc6 {[%clk 0:00:57.8]} 4. Bg5 {[%clk 0:00:58.3]} 4... d5 {[%clk 0:00:57.5]} 5. Bxf6 {[%clk 0:00:57.9]} 5... Qxf6 {[%clk 0:00:56.4]} 6. exd5 {[%clk 0:00:57.7]} 6... Nb4 {[%clk 0:00:55.9]} 7. a3 {[%clk 0:00:55.6]} 7... Na6 {[%clk 0:00:51.7]} 8. d6 {[%clk 0:00:55.1]} 8... Bxd6 {[%clk 0:00:50.5]} 9. Nd5 {[%clk 0:00:54.4]} 9... Qe6 {[%clk 0:00:48.7]} 10. c4 {[%clk 0:00:53.2]} 10... c6 {[%clk 0:00:47.3]} 11. Ne3 {[%clk 0:00:50.9]} 11... O-O {[%clk 0:00:45.5]} 12. c5 {[%clk 0:00:49.9]} 12... Bxc5 {[%clk 0:00:43.6]} 13. d4 {[%clk 0:00:49.3]} 13... Bxd4 {[%clk 0:00:42.5]} 14. Bxa6 {[%clk 0:00:49]} 14... bxa6 {[%clk 0:00:40.4]} 15. Nf3 {[%clk 0:00:43.9]} 15... Bxb2 {[%clk 0:00:39]} 16. Rb1 {[%clk 0:00:42.5]} 16... Bc3+ {[%clk 0:00:38.5]} 17. Nd2 {[%clk 0:00:40.5]} 17... Qd6 {[%clk 0:00:36.2]} 18. O-O {[%clk 0:00:39.4]} 18... Bxd2 {[%clk 0:00:35]} 19. Qh5 {[%clk 0:00:35.7]} 19... Bxe3 {[%clk 0:00:31.5]} 20. fxe3 {[%clk 0:00:35]} 20... Qd3 {[%clk 0:00:29.7]} 21. Rbd1 {[%clk 0:00:33.9]} 21... Qxe3+ {[%clk 0:00:28.6]} 22. Kh1 {[%clk 0:00:31.3]} 22... f5 {[%clk 0:00:27.6]} 23. Rde1 {[%clk 0:00:30.5]} 23... Qd4 {[%clk 0:00:21.7]} 24. Rg1 {[%clk 0:00:28.5]} 24... e4 {[%clk 0:00:19.8]} 25. Rd1 {[%clk 0:00:27.9]} 25... Qc4 {[%clk 0:00:18.9]} 26. Rc1 {[%clk 0:00:26.6]} 26... Qd5 {[%clk 0:00:17.7]} 27. Rcd1 {[%clk 0:00:25.1]} 27... Qe6 {[%clk 0:00:16.9]} 28. Rde1 {[%clk 0:00:24.1]} 28... Bb7 {[%clk 0:00:16.6]} 29. Re3 {[%clk 0:00:23.1]} 29... c5 {[%clk 0:00:16]} 30. Rh3 {[%clk 0:00:22.3]} 30... h6 {[%clk 0:00:13.3]} 31. Rg3 {[%clk 0:00:20.8]} 31... Qf6 {[%clk 0:00:11.7]} 32. Rf1 {[%clk 0:00:18.5]} 32... f4 {[%clk 0:00:10.7]} 33. Rg4 {[%clk 0:00:12.8]} 33... Bc6 {[%clk 0:00:09.9]} 34. Rgxf4 {[%clk 0:00:12.1]} 34... Be8 {[%clk 0:00:08.8]} 35. Rxf6 {[%clk 0:00:11.3]} 35... Bxh5 {[%clk 0:00:07.9]} 36. Rxf8+ {[%clk 0:00:10.5]} 36... Rxf8 {[%clk 0:00:07]} 37. Rxf8+ {[%clk 0:00:10]} 37... Kxf8 {[%clk 0:00:06.3]} 38. g3 {[%clk 0:00:09.1]} 38... c4 {[%clk 0:00:05.9]} 39. h3 {[%clk 0:00:08.6]} 39... c3 {[%clk 0:00:05.7]} 40. g4 {[%clk 0:00:08.1]} 40... c2 {[%clk 0:00:05.4]} 41. gxh5 {[%clk 0:00:07.3]} 41... c1=Q+ {[%clk 0:00:04.2]} 42. Kg2 {[%clk 0:00:06.7]} 42... Qxa3 {[%clk 0:00:03.7]} 43. Kf2 {[%clk 0:00:05]} 43... Qa2+ {[%clk 0:00:03.3]} 44. Ke3 {[%clk 0:00:04.3]} 44... Qc2 {[%clk 0:00:01.4]} 45. h4 {[%clk 0:00:02.5]} 45... Qc7 {[%clk 0:00:01.1]} 0-1

[Event "Live Chess"]
[Site "Chess.com"]
[Date "2011.01.28"]
[Round "-"]
[White "hipposcottimus"]
[Black "TimArnett"]
[Result "1-0"]
[CurrentPosition "3r2r1/1k4q1/1p1p4/pPpPnB2/2Pb1PNQ/1P6/6PP/R4R1K b - -"]
[Timezone "UTC"]
[ECO "B00"]
[ECOUrl "https://www.chess.com/openings/Owens-Defense-2.d4-Bb7"]
[UTCDate "2011.01.28"]
[UTCTime "22:58:24"]
[WhiteElo "1541"]
[BlackElo "1556"]
[TimeControl "60"]
[Termination "hipposcottimus won on time"]
[StartTime "22:58:24"]
[EndDate "2011.01.28"]
[EndTime "23:00:28"]
[Link "https://www.chess.com/game/live/92418987"]

1. e4 {[%clk 0:01:00]} 1... b6 {[%clk 0:01:00]} 2. d4 {[%clk 0:00:57.7]} 2... Bb7 {[%clk 0:00:52.8]} 3. e5 {[%clk 0:00:56.9]} 3... Be4 {[%clk 0:00:50]} 4. f3 {[%clk 0:00:54.7]} 4... Bd5 {[%clk 0:00:48.4]} 5. c4 {[%clk 0:00:53.3]} 5... Bc6 {[%clk 0:00:46.6]} 6. d5 {[%clk 0:00:51.2]} 6... Bb7 {[%clk 0:00:44.8]} 7. Nc3 {[%clk 0:00:50.8]} 7... a5 {[%clk 0:00:43]} 8. a4 {[%clk 0:00:48.8]} 8... Ba6 {[%clk 0:00:42.1]} 9. b3 {[%clk 0:00:47.3]} 9... c5 {[%clk 0:00:40.5]} 10. Nge2 {[%clk 0:00:44.6]} 10... Nh6 {[%clk 0:00:37.3]} 11. Ng3 {[%clk 0:00:43.4]} 11... g6 {[%clk 0:00:33.9]} 12. Bxh6 {[%clk 0:00:41.5]} 12... Bxh6 {[%clk 0:00:31.9]} 13. Bd3 {[%clk 0:00:41.2]} 13... Be3 {[%clk 0:00:28.9]} 14. Nf1 {[%clk 0:00:37]} 14... Bd4 {[%clk 0:00:27.7]} 15. Qc2 {[%clk 0:00:32.4]} 15... h5 {[%clk 0:00:24.5]} 16. Qd2 {[%clk 0:00:31.7]} 16... d6 {[%clk 0:00:23]} 17. Ne3 {[%clk 0:00:30.9]} 17... Nd7 {[%clk 0:00:21.1]} 18. O-O {[%clk 0:00:29.1]} 18... Qc7 {[%clk 0:00:18.6]} 19. Kh1 {[%clk 0:00:28.4]} 19... O-O-O {[%clk 0:00:17.8]} 20. Nb5 {[%clk 0:00:24.4]} 20... Bxb5 {[%clk 0:00:16.4]} 21. axb5 {[%clk 0:00:24]} 21... h4 {[%clk 0:00:13.5]} 22. exd6 {[%clk 0:00:22.7]} 22... exd6 {[%clk 0:00:12.2]} 23. Ng4 {[%clk 0:00:20.4]} 23... f5 {[%clk 0:00:10.8]} 24. Nf2 {[%clk 0:00:18.1]} 24... g5 {[%clk 0:00:09.8]} 25. Qxg5 {[%clk 0:00:16.4]} 25... Rhg8 {[%clk 0:00:08]} 26. Qxh4 {[%clk 0:00:14.7]} 26... Ne5 {[%clk 0:00:04.9]} 27. Bxf5+ {[%clk 0:00:13.7]} 27... Kb7 {[%clk 0:00:03.3]} 28. f4 {[%clk 0:00:10.3]} 28... Qg7 {[%clk 0:00:02]} 29. Ng4 {[%clk 0:00:09.1]} 1-0

[Event "Live Chess"]
[Site "Chess.com"]
[Date "2011.01.28"]
[Round "-"]
[White "TimArnett"]
[Black "hipposcottimus"]
[Result "0-1"]
[CurrentPosition "1r5k/p6p/2pb4/2p1p3/3pP2p/3P3P/PrP1NR2/2K3R1 w - -"]
[Timezone "UTC"]
[ECO "C42"]
[ECOUrl "https://www.chess.com/openings/Petrovs-Defense-Three-Knights-Game"]
[UTCDate "2011.01.28"]
[UTCTime "22:56:08"]
[WhiteElo "1556"]
[BlackElo "1541"]
[TimeControl "60"]
[Termination "hipposcottimus won on time"]
[StartTime "22:56:08"]
[EndDate "2011.01.28"]
[EndTime "22:58:13"]
[Link "https://www.chess.com/game/live/92418382"]

1. e4 {[%clk 0:01:00]} 1... e5 {[%clk 0:01:00]} 2. Nc3 {[%clk 0:00:59.6]} 2... Nf6 {[%clk 0:00:58.5]} 3. Nf3 {[%clk 0:00:58.7]} 3... Nc6 {[%clk 0:00:57.4]} 4. g3 {[%clk 0:00:58.1]} 4... d5 {[%clk 0:00:53.4]} 5. Bb5 {[%clk 0:00:55.9]} 5... d4 {[%clk 0:00:51.5]} 6. Bxc6+ {[%clk 0:00:54.2]} 6... bxc6 {[%clk 0:00:50.3]} 7. Ne2 {[%clk 0:00:51.9]} 7... Bd6 {[%clk 0:00:48.4]} 8. d3 {[%clk 0:00:51.1]} 8... O-O {[%clk 0:00:47.5]} 9. Bg5 {[%clk 0:00:50]} 9... Bg4 {[%clk 0:00:47.2]} 10. Bxf6 {[%clk 0:00:48.6]} 10... Qxf6 {[%clk 0:00:46.9]} 11. Nh4 {[%clk 0:00:43.9]} 11... g5 {[%clk 0:00:44.4]} 12. f3 {[%clk 0:00:42.7]} 12... gxh4 {[%clk 0:00:41.8]} 13. fxg4 {[%clk 0:00:41.9]} 13... Kh8 {[%clk 0:00:40.9]} 14. g5 {[%clk 0:00:39.1]} 14... Qxg5 {[%clk 0:00:39.3]} 15. g4 {[%clk 0:00:37.9]} 15... Qxg4 {[%clk 0:00:38.4]} 16. Qd2 {[%clk 0:00:35.9]} 16... Rg8 {[%clk 0:00:33.9]} 17. O-O-O {[%clk 0:00:34.6]} 17... Rab8 {[%clk 0:00:31.8]} 18. Rdf1 {[%clk 0:00:33.4]} 18... Qd7 {[%clk 0:00:30.4]} 19. h3 {[%clk 0:00:30.5]} 19... c5 {[%clk 0:00:29.8]} 20. Qa5 {[%clk 0:00:26.3]} 20... Rb5 {[%clk 0:00:27.4]} 21. Qa4 {[%clk 0:00:24.1]} 21... Rgb8 {[%clk 0:00:25.3]} 22. Qc4 {[%clk 0:00:18.3]} 22... c6 {[%clk 0:00:24.6]} 23. Rxf7 {[%clk 0:00:16.5]} 23... Qe8 {[%clk 0:00:18.1]} 24. Rhf1 {[%clk 0:00:14.6]} 24... Qg8 {[%clk 0:00:13.9]} 25. R7f2 {[%clk 0:00:03.6]} 25... Rxb2 {[%clk 0:00:12.9]} 26. Qxg8+ {[%clk 0:00:01.2]} 26... Kxg8 {[%clk 0:00:10.3]} 27. Rg1+ {[%clk 0:00:00.8]} 27... Kh8 {[%clk 0:00:07.9]} 0-1

[Event "Live Chess"]
[Site "Chess.com"]
[Date "2011.01.28"]
[Round "-"]
[White "hipposcottimus"]
[Black "TimArnett"]
[Result "1-0"]
[CurrentPosition "7k/1b4r1/3pQ2p/1B1P4/PP3p1P/8/5P1P/5K2 b - -"]
[Timezone "UTC"]
[ECO "C40"]
[ECOUrl "https://www.chess.com/openings/Kings-Pawn-Opening-Kings-Knight-Variation"]
[UTCDate "2011.01.28"]
[UTCTime "22:53:46"]
[WhiteElo "1541"]
[BlackElo "1556"]
[TimeControl "60"]
[Termination "hipposcottimus won on time"]
[StartTime "22:53:46"]
[EndDate "2011.01.28"]
[EndTime "22:55:57"]
[Link "https://www.chess.com/game/live/92417746"]

1. e4 {[%clk 0:01:00]} 1... e5 {[%clk 0:01:00]} 2. Nf3 {[%clk 0:00:59.6]} 2... b6 {[%clk 0:00:59.7]} 3. d4 {[%clk 0:00:57.6]} 3... Bb7 {[%clk 0:00:59.3]} 4. d5 {[%clk 0:00:56.8]} 4... c6 {[%clk 0:00:57.8]} 5. Nxe5 {[%clk 0:00:54.4]} 5... cxd5 {[%clk 0:00:54.5]} 6. exd5 {[%clk 0:00:54.1]} 6... d6 {[%clk 0:00:53.8]} 7. Nf3 {[%clk 0:00:44.8]} 7... Qc7 {[%clk 0:00:51.5]} 8. Be2 {[%clk 0:00:43]} 8... Nd7 {[%clk 0:00:50.6]} 9. O-O {[%clk 0:00:41.5]} 9... Be7 {[%clk 0:00:48.2]} 10. c4 {[%clk 0:00:37.7]} 10... Ngf6 {[%clk 0:00:46.9]} 11. Nc3 {[%clk 0:00:36.7]} 11... O-O {[%clk 0:00:45.5]} 12. Bg5 {[%clk 0:00:34.2]} 12... a6 {[%clk 0:00:42.8]} 13. Bxf6 {[%clk 0:00:33]} 13... Nxf6 {[%clk 0:00:41.9]} 14. Ng5 {[%clk 0:00:31.3]} 14... b5 {[%clk 0:00:40.2]} 15. cxb5 {[%clk 0:00:28.4]} 15... axb5 {[%clk 0:00:39.6]} 16. Bxb5 {[%clk 0:00:27.6]} 16... Ra5 {[%clk 0:00:36.7]} 17. b4 {[%clk 0:00:24.8]} 17... Raa8 {[%clk 0:00:32.4]} 18. a4 {[%clk 0:00:23.1]} 18... Rac8 {[%clk 0:00:31.5]} 19. Nce4 {[%clk 0:00:18.4]} 19... Nxe4 {[%clk 0:00:29.3]} 20. Nxe4 {[%clk 0:00:18.1]} 20... f5 {[%clk 0:00:27]} 21. Ng3 {[%clk 0:00:16.9]} 21... Bh4 {[%clk 0:00:25.8]} 22. Nh5 {[%clk 0:00:16.2]} 22... g6 {[%clk 0:00:24.4]} 23. g3 {[%clk 0:00:15]} 23... gxh5 {[%clk 0:00:22.3]} 24. gxh4 {[%clk 0:00:13.7]} 24... Qg7+ {[%clk 0:00:22]} 25. Kh1 {[%clk 0:00:13.3]} 25... f4 {[%clk 0:00:20.8]} 26. Rg1 {[%clk 0:00:12.6]} 26... Qxg1+ {[%clk 0:00:17.2]} 27. Qxg1+ {[%clk 0:00:12.3]} 27... Kh8 {[%clk 0:00:16.9]} 28. Qg5 {[%clk 0:00:10.4]} 28... Rg8 {[%clk 0:00:16.6]} 29. Qxh5 {[%clk 0:00:09.7]} 29... Rcf8 {[%clk 0:00:15.5]} 30. Rg1 {[%clk 0:00:06.5]} 30... Rxg1+ {[%clk 0:00:08.2]} 31. Kxg1 {[%clk 0:00:06]} 31... Rg8+ {[%clk 0:00:07.6]} 32. Kf1 {[%clk 0:00:05.2]} 32... h6 {[%clk 0:00:03.5]} 33. Qf7 {[%clk 0:00:04.7]} 33... Rg7 {[%clk 0:00:02.5]} 34. Qe6 {[%clk 0:00:03.7]} 1-0

[Event "Live Chess"]
[Site "Chess.com"]
[Date "2011.01.28"]
[Round "-"]
[White "TimArnett"]
[Black "hipposcottimus"]
[Result "0-1"]
[CurrentPosition "6k1/2p2pp1/2p1p2p/2P1N3/p4P1K/P3R1PP/r2rb3/8 w - -"]
[Timezone "UTC"]
[ECO "A02"]
[ECOUrl "https://www.chess.com/openings/Birds-Opening-1...Nf6"]
[UTCDate "2011.01.28"]
[UTCTime "22:51:39"]
[WhiteElo "1556"]
[BlackElo "1541"]
[TimeControl "60"]
[Termination "hipposcottimus won on time"]
[StartTime "22:51:39"]
[EndDate "2011.01.28"]
[EndTime "22:53:33"]
[Link "https://www.chess.com/game/live/92417148"]

1. f4 {[%clk 0:01:00]} 1... Nf6 {[%clk 0:01:00]} 2. e4 {[%clk 0:00:59.5]} 2... d5 {[%clk 0:00:59.4]} 3. d4 {[%clk 0:00:58.7]} 3... dxe4 {[%clk 0:00:58]} 4. Qe2 {[%clk 0:00:58.2]} 4... Qd5 {[%clk 0:00:57]} 5. g3 {[%clk 0:00:57.2]} 5... e6 {[%clk 0:00:56.3]} 6. Bg2 {[%clk 0:00:56.5]} 6... Bb4+ {[%clk 0:00:52.8]} 7. c3 {[%clk 0:00:55.3]} 7... Ba5 {[%clk 0:00:52.5]} 8. b4 {[%clk 0:00:54.4]} 8... Bb6 {[%clk 0:00:51.1]} 9. Nd2 {[%clk 0:00:54.1]} 9... O-O {[%clk 0:00:49]} 10. c4 {[%clk 0:00:53.6]} 10... Qd7 {[%clk 0:00:48.2]} 11. c5 {[%clk 0:00:53.1]} 11... Bxc5 {[%clk 0:00:46.6]} 12. bxc5 {[%clk 0:00:52.5]} 12... Nc6 {[%clk 0:00:46.2]} 13. Nxe4 {[%clk 0:00:48.1]} 13... Nxe4 {[%clk 0:00:41.9]} 14. Bxe4 {[%clk 0:00:47.8]} 14... Qxd4 {[%clk 0:00:40.8]} 15. Bxc6 {[%clk 0:00:44.9]} 15... Qxa1 {[%clk 0:00:39.4]} 16. Nf3 {[%clk 0:00:42.7]} 16... Qxc1+ {[%clk 0:00:38.2]} 17. Qd1 {[%clk 0:00:37.5]} 17... Qe3+ {[%clk 0:00:35]} 18. Qe2 {[%clk 0:00:34.5]} 18... Qxe2+ {[%clk 0:00:29.5]} 19. Kxe2 {[%clk 0:00:33.6]} 19... bxc6 {[%clk 0:00:29.2]} 20. Rd1 {[%clk 0:00:30.9]} 20... Ba6+ {[%clk 0:00:28.9]} 21. Kf2 {[%clk 0:00:29]} 21... Bb5 {[%clk 0:00:27.5]} 22. a3 {[%clk 0:00:27.5]} 22... a5 {[%clk 0:00:27]} 23. Kg2 {[%clk 0:00:25.6]} 23... a4 {[%clk 0:00:26.4]} 24. Ne5 {[%clk 0:00:24.9]} 24... Rad8 {[%clk 0:00:23.5]} 25. Re1 {[%clk 0:00:20.7]} 25... Rd2+ {[%clk 0:00:22]} 26. Kh3 {[%clk 0:00:19.2]} 26... Rfd8 {[%clk 0:00:21.4]} 27. Re3 {[%clk 0:00:16]} 27... Ra2 {[%clk 0:00:20.6]} 28. Kg4 {[%clk 0:00:14.4]} 28... Rdd2 {[%clk 0:00:19.6]} 29. h3 {[%clk 0:00:09]} 29... Be2+ {[%clk 0:00:16.2]} 30. Kh4 {[%clk 0:00:07]} 30... h6 {[%clk 0:00:14]} 0-1

[Event "Live Chess"]
[Site "Chess.com"]
[Date "2011.01.28"]
[Round "-"]
[White "hipposcottimus"]
[Black "TimArnett"]
[Result "1-0"]
[CurrentPosition "2r5/2kb1ppp/3R4/2Q5/8/4B3/PP3PPP/2R3K1 b - -"]
[Timezone "UTC"]
[ECO "B01"]
[ECOUrl "https://www.chess.com/openings/Scandinavian-Defense-2.e5"]
[UTCDate "2011.01.28"]
[UTCTime "22:49:17"]
[WhiteElo "1541"]
[BlackElo "1556"]
[TimeControl "60"]
[Termination "hipposcottimus won on time"]
[StartTime "22:49:17"]
[EndDate "2011.01.28"]
[EndTime "22:51:20"]
[Link "https://www.chess.com/game/live/92416560"]

1. e4 {[%clk 0:01:00]} 1... d5 {[%clk 0:01:00]} 2. e5 {[%clk 0:00:58.9]} 2... d4 {[%clk 0:00:59.2]} 3. c3 {[%clk 0:00:57.5]} 3... Be6 {[%clk 0:00:58.8]} 4. cxd4 {[%clk 0:00:56]} 4... Qxd4 {[%clk 0:00:57.4]} 5. d3 {[%clk 0:00:55.7]} 5... c5 {[%clk 0:00:55.9]} 6. Be2 {[%clk 0:00:55.3]} 6... c4 {[%clk 0:00:54.3]} 7. Nf3 {[%clk 0:00:55]} 7... cxd3 {[%clk 0:00:53.3]} 8. Nxd4 {[%clk 0:00:54.1]} 8... dxe2 {[%clk 0:00:52.6]} 9. Qxe2 {[%clk 0:00:53.5]} 9... Nc6 {[%clk 0:00:48.8]} 10. Qb5 {[%clk 0:00:52.8]} 10... O-O-O {[%clk 0:00:46.9]} 11. Nxc6 {[%clk 0:00:51.9]} 11... Rd5 {[%clk 0:00:44.3]} 12. Nxa7+ {[%clk 0:00:50.1]} 12... Kb8 {[%clk 0:00:42]} 13. Nc6+ {[%clk 0:00:48.8]} 13... Kc7 {[%clk 0:00:39.1]} 14. Qc4 {[%clk 0:00:38.7]} 14... bxc6 {[%clk 0:00:37.5]} 15. Qc3 {[%clk 0:00:37.6]} 15... Kb6 {[%clk 0:00:35]} 16. Be3+ {[%clk 0:00:36]} 16... Kc7 {[%clk 0:00:32.4]} 17. Na3 {[%clk 0:00:35.6]} 17... Bd7 {[%clk 0:00:29]} 18. O-O {[%clk 0:00:34.7]} 18... e6 {[%clk 0:00:27.5]} 19. Nc4 {[%clk 0:00:32.2]} 19... Be7 {[%clk 0:00:23.3]} 20. Nd6 {[%clk 0:00:31.3]} 20... Nh6 {[%clk 0:00:18.8]} 21. Rfd1 {[%clk 0:00:25.7]} 21... Nf5 {[%clk 0:00:17.8]} 22. Rxd5 {[%clk 0:00:24.5]} 22... Nxd6 {[%clk 0:00:15.4]} 23. exd6+ {[%clk 0:00:23.1]} 23... Bxd6 {[%clk 0:00:14.3]} 24. Rd4 {[%clk 0:00:22.2]} 24... e5 {[%clk 0:00:12.4]} 25. Rd3 {[%clk 0:00:20.5]} 25... Rc8 {[%clk 0:00:10.2]} 26. Rc1 {[%clk 0:00:17.5]} 26... Kd8 {[%clk 0:00:07.8]} 27. Rxd6 {[%clk 0:00:15.5]} 27... c5 {[%clk 0:00:06.3]} 28. Qxe5 {[%clk 0:00:13.1]} 28... Kc7 {[%clk 0:00:00.3]} 29. Qxc5+ {[%clk 0:00:11]} 1-0

[Event "Live Chess"]
[Site "Chess.com"]
[Date "2011.01.28"]
[Round "-"]
[White "TimArnett"]
[Black "hipposcottimus"]
[Result "0-1"]
[CurrentPosition "5rk1/pp4pp/4p3/2p2p2/2P5/1r5P/5KP1/8 w - -"]
[Timezone "UTC"]
[ECO "A02"]
[ECOUrl "https://www.chess.com/openings/Birds-Opening-1...Nf6"]
[UTCDate "2011.01.28"]
[UTCTime "22:47:05"]
[WhiteElo "1556"]
[BlackElo "1541"]
[TimeControl "60"]
[Termination "hipposcottimus won on time"]
[StartTime "22:47:05"]
[EndDate "2011.01.28"]
[EndTime "22:49:09"]
[Link "https://www.chess.com/game/live/92415980"]

1. f4 {[%clk 0:01:00]} 1... Nf6 {[%clk 0:01:00]} 2. d3 {[%clk 0:00:59.4]} 2... d5 {[%clk 0:00:59.8]} 3. e3 {[%clk 0:00:58.4]} 3... c5 {[%clk 0:00:59.5]} 4. Nf3 {[%clk 0:00:58]} 4... Nc6 {[%clk 0:00:59.1]} 5. Be2 {[%clk 0:00:57.6]} 5... Bg4 {[%clk 0:00:58]} 6. O-O {[%clk 0:00:57]} 6... Bxf3 {[%clk 0:00:57.8]} 7. Bxf3 {[%clk 0:00:56.7]} 7... e6 {[%clk 0:00:57.2]} 8. Bd2 {[%clk 0:00:56.4]} 8... Bd6 {[%clk 0:00:56.9]} 9. Bc3 {[%clk 0:00:56]} 9... O-O {[%clk 0:00:56.7]} 10. b3 {[%clk 0:00:55.5]} 10... d4 {[%clk 0:00:55.6]} 11. Bb2 {[%clk 0:00:55.2]} 11... dxe3 {[%clk 0:00:54.2]} 12. Re1 {[%clk 0:00:53.4]} 12... Bxf4 {[%clk 0:00:52.3]} 13. Qe2 {[%clk 0:00:51.9]} 13... Bh6 {[%clk 0:00:51.3]} 14. Bc1 {[%clk 0:00:50.1]} 14... Nd5 {[%clk 0:00:50.3]} 15. c4 {[%clk 0:00:48.2]} 15... Nd4 {[%clk 0:00:49.4]} 16. Qf1 {[%clk 0:00:43.9]} 16... e2 {[%clk 0:00:46.5]} 17. Rxe2 {[%clk 0:00:43.2]} 17... Nxe2+ {[%clk 0:00:45.3]} 18. Qxe2 {[%clk 0:00:42.8]} 18... Nf4 {[%clk 0:00:43.4]} 19. Bxf4 {[%clk 0:00:41.5]} 19... Bxf4 {[%clk 0:00:43.2]} 20. Nd2 {[%clk 0:00:39.9]} 20... Rc8 {[%clk 0:00:42.9]} 21. Ne4 {[%clk 0:00:38.8]} 21... Qd4+ {[%clk 0:00:42]} 22. Kh1 {[%clk 0:00:35]} 22... Qxa1+ {[%clk 0:00:41.2]} 23. Qd1 {[%clk 0:00:30]} 23... Qxa2 {[%clk 0:00:40.9]} 24. Nc3 {[%clk 0:00:26.2]} 24... Qf2 {[%clk 0:00:33.6]} 25. Ne4 {[%clk 0:00:21.8]} 25... Qd4 {[%clk 0:00:32.2]} 26. Nd2 {[%clk 0:00:17]} 26... Rcd8 {[%clk 0:00:30.7]} 27. Ne4 {[%clk 0:00:15]} 27... Be3 {[%clk 0:00:28.6]} 28. Qe2 {[%clk 0:00:12.9]} 28... f5 {[%clk 0:00:27.1]} 29. Nd2 {[%clk 0:00:10.6]} 29... Qxd3 {[%clk 0:00:25.2]} 30. Qxd3 {[%clk 0:00:08.1]} 30... Rxd3 {[%clk 0:00:24.9]} 31. Nf1 {[%clk 0:00:06.9]} 31... Bf2 {[%clk 0:00:21]} 32. Be2 {[%clk 0:00:05]} 32... Rd2 {[%clk 0:00:19.5]} 33. h3 {[%clk 0:00:04.4]} 33... Rxe2 {[%clk 0:00:18.3]} 34. Ng3 {[%clk 0:00:02.5]} 34... Re1+ {[%clk 0:00:16.9]} 35. Kh2 {[%clk 0:00:01.3]} 35... Bxg3+ {[%clk 0:00:16.6]} 36. Kxg3 {[%clk 0:00:00.7]} 36... Re3+ {[%clk 0:00:15.7]} 37. Kf2 {[%clk 0:00:00.1]} 37... Rxb3 {[%clk 0:00:15.3]} 0-1

[Event "Live Chess"]
[Site "Chess.com"]
[Date "2011.01.28"]
[Round "-"]
[White "hipposcottimus"]
[Black "TimArnett"]
[Result "0-1"]
[CurrentPosition "8/8/2p5/p1p5/Q1P5/1Pk2P2/6RP/6K1 w - -"]
[Timezone "UTC"]
[ECO "B01"]
[ECOUrl "https://www.chess.com/openings/Scandinavian-Defense-Mieses-Kotrc-Variation-3.Nc3-Qd8-4.d4"]
[UTCDate "2011.01.28"]
[UTCTime "22:44:34"]
[WhiteElo "1541"]
[BlackElo "1556"]
[TimeControl "60"]
[Termination "TimArnett won on time"]
[StartTime "22:44:34"]
[EndDate "2011.01.28"]
[EndTime "22:46:54"]
[Link "https://www.chess.com/game/live/92415259"]

1. e4 {[%clk 0:01:00]} 1... d5 {[%clk 0:01:00]} 2. exd5 {[%clk 0:00:58.4]} 2... Qxd5 {[%clk 0:00:59]} 3. Nc3 {[%clk 0:00:58.2]} 3... Qd8 {[%clk 0:00:57.1]} 4. d4 {[%clk 0:00:56.8]} 4... e6 {[%clk 0:00:56.1]} 5. Nf3 {[%clk 0:00:56.3]} 5... Bb4 {[%clk 0:00:55.7]} 6. Bd2 {[%clk 0:00:51.9]} 6... Bxc3 {[%clk 0:00:55.3]} 7. Bxc3 {[%clk 0:00:51.3]} 7... Bd7 {[%clk 0:00:54.5]} 8. Be2 {[%clk 0:00:50.6]} 8... Nc6 {[%clk 0:00:54.1]} 9. O-O {[%clk 0:00:50.2]} 9... Qe7 {[%clk 0:00:53.7]} 10. Re1 {[%clk 0:00:47.6]} 10... Nf6 {[%clk 0:00:53.3]} 11. Bb5 {[%clk 0:00:46.7]} 11... O-O-O {[%clk 0:00:51.7]} 12. d5 {[%clk 0:00:46]} 12... exd5 {[%clk 0:00:50.2]} 13. Rxe7 {[%clk 0:00:44.2]} 13... d4 {[%clk 0:00:48.6]} 14. Bxc6 {[%clk 0:00:38.3]} 14... bxc6 {[%clk 0:00:47.2]} 15. Nxd4 {[%clk 0:00:36.6]} 15... c5 {[%clk 0:00:45.5]} 16. Nc6 {[%clk 0:00:33]} 16... Bxc6 {[%clk 0:00:44.4]} 17. Rxf7 {[%clk 0:00:32.1]} 17... Rxd1+ {[%clk 0:00:43.4]} 18. Rxd1 {[%clk 0:00:28.4]} 18... Re8 {[%clk 0:00:42.9]} 19. Rxg7 {[%clk 0:00:26.6]} 19... Bb5 {[%clk 0:00:41.6]} 20. Bxf6 {[%clk 0:00:24.5]} 20... Be2 {[%clk 0:00:40.2]} 21. Rd8+ {[%clk 0:00:22.8]} 21... Rxd8 {[%clk 0:00:39.2]} 22. Bxd8 {[%clk 0:00:22.5]} 22... Kxd8 {[%clk 0:00:37.8]} 23. Rg8+ {[%clk 0:00:22.2]} 23... Kd7 {[%clk 0:00:36.6]} 24. Rg7+ {[%clk 0:00:21.9]} 24... Kc6 {[%clk 0:00:35.2]} 25. Rxh7 {[%clk 0:00:21.6]} 25... Kb7 {[%clk 0:00:34.8]} 26. f3 {[%clk 0:00:19.9]} 26... Bc4 {[%clk 0:00:33]} 27. b3 {[%clk 0:00:19.3]} 27... Bd5 {[%clk 0:00:31.5]} 28. c4 {[%clk 0:00:18.8]} 28... Bc6 {[%clk 0:00:30.5]} 29. Rh6 {[%clk 0:00:17.7]} 29... Bd7 {[%clk 0:00:29]} 30. g4 {[%clk 0:00:16.8]} 30... Be8 {[%clk 0:00:27.4]} 31. g5 {[%clk 0:00:16]} 31... Bf7 {[%clk 0:00:26.5]} 32. g6 {[%clk 0:00:15.5]} 32... Bg8 {[%clk 0:00:25.3]} 33. g7 {[%clk 0:00:14.5]} 33... Kc8 {[%clk 0:00:23.6]} 34. Rh8 {[%clk 0:00:13.8]} 34... Kd7 {[%clk 0:00:23.3]} 35. Rxg8 {[%clk 0:00:13]} 35... Ke7 {[%clk 0:00:22.8]} 36. Rh8 {[%clk 0:00:12.6]} 36... Kf7 {[%clk 0:00:22.2]} 37. g8=Q+ {[%clk 0:00:11.4]} 37... Kf6 {[%clk 0:00:20.9]} 38. Rh7 {[%clk 0:00:11.1]} 38... c6 {[%clk 0:00:19.1]} 39. Qg7+ {[%clk 0:00:10.6]} 39... Kf5 {[%clk 0:00:18]} 40. Rh6 {[%clk 0:00:10.3]} 40... Kf4 {[%clk 0:00:17]} 41. Qg6 {[%clk 0:00:08.8]} 41... Ke3 {[%clk 0:00:15.2]} 42. Rh4 {[%clk 0:00:08.3]} 42... Ke2 {[%clk 0:00:13.5]} 43. Qe4+ {[%clk 0:00:07.6]} 43... Kd2 {[%clk 0:00:12.1]} 44. Rg4 {[%clk 0:00:05.6]} 44... a5 {[%clk 0:00:10]} 45. Rg2+ {[%clk 0:00:04.2]} 45... Kc3 {[%clk 0:00:07.5]} 46. Qc2+ {[%clk 0:00:03.7]} 46... Kb4 {[%clk 0:00:06.6]} 47. a3+ {[%clk 0:00:03.4]} 47... Kxa3 {[%clk 0:00:04.7]} 48. Qa2+ {[%clk 0:00:02]} 48... Kb4 {[%clk 0:00:04.3]} 49. Qa4+ {[%clk 0:00:01.4]} 49... Kc3 {[%clk 0:00:03.5]} 0-1